Cogmind - Beta 10.2 @@@ ROGUE MODE // 2021.12.08 @ 21:58:01 Player: Hert Result: Destroyed by EX-DEC with AWS/EX-DEC Performance ------------- Evolutions (0) 0 Regions Visited (3) 600 Robots Destroyed (13) 65 Value Destroyed (400) 400 Prototype IDs (0) 0 Alien Tech Used (0) 0 Bonus (0) 0 TOTAL SCORE: 1065 Bonus ------- None Cogmind --------- Core Integrity 0/250 Matter 277/300 Energy 79/100 System Corruption 8% Temperature Cool (0) Movement Core (850) Ox16 Location -10/Exiles Parts ------- > --- POWER (1) -------- (None) > --- PROPULSION (2) --- (None) > --- UTILITY (2) ------ Large Storage Unit High-capacity Storage Unit > --- WEAPON (2) ------- Assault Rifle > --- INVENTORY (18) --- Ion Engine Light Treads Light Treads Large Storage Unit Large Storage Unit High-capacity Matter Pod (90) Weapon Shielding Thief Drone Bay Medium Laser Medium Laser Peak State ------------ > --- POWER ------------ Light Nuclear Core > --- PROPULSION ------- Light Treads Light Treads > --- UTILITY ---------- Large Storage Unit Large Storage Unit > --- WEAPON ----------- Beam Cannon Grenade Launcher > --- INVENTORY -------- Ion Engine Ion Engine Light Treads Light Treads Large Storage Unit Large Storage Unit Weapon Shielding Medium Laser Medium Laser Assault Rifle [Rating: 10] Favorites ----------- Power Ion Engine Engine Ion Engine Power Core Light Nuclear Core Propulsion Light Treads Treads Light Treads Utility Large Storage Unit Storage Large Storage Unit Protection Weapon Shielding Weapon Beam Cannon Energy Gun Medium Laser Energy Cannon Beam Cannon Ballistic Gun Light Assault Rifle Launcher Grenade Launcher Special Weapon Mining Laser Build | -11 -10 -10 -10 ------- Run | Scr Mat Min Exi Slots Evolved . | . . . . Power . | . . . . Propulsion . | . . . . Utility . | . . . . Weapon . | . . . . Parts Attached 17 | 6 8 1 2 Power 3 | 1 1 1 . Engine 2 | 1 . 1 . Core 1 | . 1 . . Reactor . | . . . . Propulsion 2 | 2 . . . Treads 2 | 2 . . . Leg . | . . . . Wheel . | . . . . Hover . | . . . . Flight . | . . . . Utility 6 | 1 5 . . Device . | . . . . Storage 5 | 1 4 . . Processor . | . . . . Hackware . | . . . . Protection 1 | . 1 . . Artifact . | . . . . Weapon 6 | 2 2 . 2 Energy Gun 1 | 1 . . . Energy Cannon 1 | . 1 . . Ballistic Gun 2 | 1 . . 1 Ballistic Cannon . | . . . . Launcher 1 | . 1 . . Special Weapon 1 | . . . 1 Impact Weapon . | . . . . Slashing Weapon . | . . . . Piercing Weapon . | . . . . Special Melee Weapon . | . . . . Unidentified Prototypes . | . . . . Parts Lost 7 | . . 1 6 Power 2 | . . 1 1 Propulsion 2 | . . . 2 Utility . | . . . . Weapon 3 | . . . 3 Highest Loss Streak 6 | . . 1 6 Average Slot Usage (%) 99 | . 99 99 98 Engine 10 | . 6 11 13 Core 3 | . 7 2 . Treads 27 | . 28 28 27 Storage 23 | . 16 28 28 Protection 4 | . 11 . . Energy Gun 1 | . 3 . . Energy Cannon 12 | . 10 14 13 Ballistic Gun 1 | . 3 . . Launcher 12 | . 10 14 13 Naked Turns . | . . . . Heaviest Build 59 | 12 59 59 59 Greatest Support 40 | 40 40 40 40 Greatest Overweight (x) 1 | . 1 1 1 Average Overweight (x) . | . . 1 1 Largest Inventory Capacity 18 | 6 18 18 18 Average Capacity 14 | 5 8 18 18 Most Carried 12 | 4 11 12 12 Average Carried 9 | 1 6 11 11 Final Capacity 18 | 6 18 18 18 Final Carried 12 | 2 11 12 10 Class Distribution -------------------- 100% | Mutant Dominant Class ---------------- Mutant | -10/Materials Mutant | -10/Mines Mutant | -10/Exiles Resources | -11 -10 -10 -10 ----------- Run | Scr Mat Min Exi Matter Collected 638 | 239 144 255 . Remotely . | . . . . Salvage Created 395 | . 354 41 . Parts 22 | . 22 . . Haulers Intercepted 2 | . 2 . . Recyclers Shooed 1 | . 1 . . Parts Field Recycled . | . . . . Retrieved Matter . | . . . . Parts Self-Destructed . | . . . . Prevented . | . . . . Kills | -11 -10 -10 -10 ------- Run | Scr Mat Min Exi Combat Hostiles Destroyed 18 | . 9 9 . Cannons 5 | . 3 2 . AOE 13 | . 6 7 . Classes Destroyed 5 | . 4 1 . Builder 1 | . 1 . . Hauler 2 | . 2 . . Watcher 1 | . 1 . . Grunt 9 | . 9 . . Assembled 9 | . . 9 . Best Kill Streak 13 | . 13 8 . Combat Bots Only 9 | . 9 8 . Max Kills in Single Turn 3 | . 3 3 . Gunslinging . | . . . . Exploded 2 | . 1 2 . Melee . | . . . . Uniques/NPCs Destroyed . | . . . . Combat | -11 -10 -10 -10 -------- Run | Scr Mat Min Exi Damage Taken 1062 | . 122 368 572 Core 261 | . 74 59 128 Absorbed by Shields . | . . . . Core Remaining (%) 100 | 100 . . . Volleys Fired 30 | . 14 13 3 Largest 2 | . 2 2 2 Hottest 90 | . 90 90 90 Shots Fired 49 | . 27 17 5 Gun 1 | . . . 1 Cannon 28 | . 14 12 2 Launcher 20 | . 13 5 2 Special . | . . . . Kinetic 1 | . . . 1 Thermal 28 | . 14 12 2 Explosive 20 | . 13 5 2 Electromagnetic . | . . . . Robot Hit Streak 13 | . 8 10 13 Robot Miss Streak 3 | . 1 3 2 Penetration Max . | . . . . Secondary Targets . | . . . . Shots Hit Robots 29 | . 14 12 3 Core Hits 45 | . 21 23 1 Critical Hits . | . . . . Critical Kills . | . . . . Critical Parts Destroyed . | . . . . Melee Attacks . | . . . . Impact . | . . . . Slashing . | . . . . Piercing . | . . . . Sneak Attacks . | . . . . Combat Hostiles . | . . . . Follow-up Attacks . | . . . . Damage Inflicted 1562 | . 873 580 109 Guns . | . . . . Cannons 384 | . 157 192 35 Explosions 1178 | . 716 388 74 Melee . | . . . . Ramming . | . . . . Kinetic . | . . . . Thermal 384 | . 157 192 35 Explosive 1178 | . 716 388 74 Electromagnetic . | . . . . Impact . | . . . . Slashing . | . . . . Piercing . | . . . . Highest Corruption 8 | . 6 6 8 Average Corruption 4 | . 2 6 6 Corruption Purged . | . . . . Effects 37 | . 9 19 9 Message Errors 10 | . 3 4 3 Matter Fused 4 | . 1 2 1 Heat Flow Errors 7 | . . 6 1 Energy Discharges 5 | . 3 2 . Data Loss (minor) 4 | . . 1 3 Misfires 1 | . . . 1 Targeting Errors 5 | . 2 3 . Weapon Failures 1 | . . 1 . Overload Shots . | . . . . Overflow Damage 43 | . 38 5 . Projectiles 14 | . 14 . . Explosions 29 | . 24 5 . Melee . | . . . . Knockbacks . | . . . . Impact . | . . . . Kinetic . | . . . . Secondary . | . . . . Self-Inflicted Damage 56 | . 12 44 . Shots 3 | . 1 2 . Rammed . | . . . . Targets Rammed . | . . . . Kicked . | . . . . Crushed . | . . . . Highest Temperature 254 | . 193 254 206 Average Temperature 94 | . 80 107 72 Received Heat Transfer 63 | . 63 . . Siege Activations . | . . . . Robots Corrupted . | . . . . Combat Hostiles . | . . . . Parts Fried . | . . . . Impact Corruptions . | . . . . Robots Melted . | . . . . Combat Hostiles . | . . . . Parts Melted . | . . . . Heat Transferred 814 | . 333 407 74 Parts Sabotaged . | . . . . Parts Stolen . | . . . . Parts Stripped . | . . . . Power Chain Reactions . | . . . . Missiles Intercepted . | . . . . Alert | -11 -10 -10 -10 ------- Run | Scr Mat Min Exi Peak Influence 291 | . 291 35 . Initial 35 | . . 35 . Average 68 | . 142 8 . Maximum Alert Level 1 | . 1 . . Low Security (%) 81 | 100 59 100 . Level 1 18 | . 40 . . Level 2 . | . . . . Level 3 . | . . . . Level 4 . | . . . . Level 5 . | . . . . High Security . | . . . . Max Security . | . . . . Squads Dispatched 1 | . 1 . . Investigation . | . . . . Extermination . | . . . . Reinforcement 1 | . 1 . . Assault . | . . . . Garrison . | . . . . Intercept . | . . . . Construction Impeded . | . . . . Haulers Reinforced . | . . . . Stealth | -11 -10 -10 -10 --------- Run | Scr Mat Min Exi Distress Signals 4 | . 3 1 . Communications Jammed . | . . . . Distress Signals . | . . . . Times Spotted 40 | . 16 11 13 Peak Tracking Total 12 | . 6 10 12 Tactical Retreats 1 | . . . 1 Traps | -11 -10 -10 -10 ------- Run | Scr Mat Min Exi Traps Triggered 3 | . 3 . . Indirectly . | . . . . Trap Hack Attempts . | . . . . Triggered . | . . . . Disarmed . | . . . . Reprogrammed . | . . . . Reused . | . . . . Traps Extracted . | . . . . Installed . | . . . . Triggered . | . . . . Machines | -11 -10 -10 -10 ---------- Run | Scr Mat Min Exi Machines Disabled 5 | . 3 . 2 Max in Single Turn 2 | . 1 . 2 Machines Sabotaged . | . . . . Garrisons Compromised . | . . . . Overloaded Fab Kills . | . . . . Fab Network Shutdowns . | . . . . Hacking | -11 -10 -10 -10 --------- Run | Scr Mat Min Exi Machines Accessed 1 | . . 1 . Terminals . | . . . . Fabricators . | . . . . Repair Stations . | . . . . Recycling Units . | . . . . Scanalyzers . | . . . . Garrison Access . | . . . . Total Hacks 1 | . . 1 . Successful 1 | . . 1 . Failed . | . . . . Catastrophic . | . . . . Database Lockouts . | . . . . Manual . | . . . . Terminals . | . . . . Fabricators . | . . . . Repair Stations . | . . . . Recycling Units . | . . . . Scanalyzers . | . . . . Garrison Access . | . . . . Terminal Hacks 1 | . . 1 . Open Door 1 | . . 1 . Fabricator Hacks . | . . . . Repair Station Hacks . | . . . . Recycling Unit Hacks . | . . . . Scanalyzer . | . . . . Garrison Access Hacks . | . . . . Unauthorized Hacks . | . . . . Terminals . | . . . . Fabricators . | . . . . Repair Stations . | . . . . Recycling Units . | . . . . Scanalyzers . | . . . . Garrison Access . | . . . . Data Cores Recovered . | . . . . Used . | . . . . Hacking Detections . | . . . . Full Trace Events . | . . . . Feedback Events . | . . . . Feedback Blocked . | . . . . Robot Schematics Acquired . | . . . . Robots Built . | . . . . Matter . | . . . . Time . | . . . . Total Robot Build Rating . | . . . . Part Schematics Acquired . | . . . . Parts Built . | . . . . Matter . | . . . . Time . | . . . . Total Part Build Rating . | . . . . Parts Repaired . | . . . . Time . | . . . . Parts Recycled . | . . . . Recycled Matter . | . . . . Retrieved Matter . | . . . . Retrieved Components . | . . . . Parts Scanalyzed . | . . . . Part Schematics Acquired . | . . . . Parts Damaged . | . . . . Bothacking | -11 -10 -10 -10 ------------ Run | Scr Mat Min Exi Used RIF Installer . | . . . . Robots Hacked . | . . . . Non-combat . | . . . . Combat . | . . . . Robot Hacks Applied . | . . . . Relay Couplers Released . | . . . . Robots Rewired . | . . . . Allies Hacked . | . . . . Hacks Repelled . | . . . . Allies | -11 -10 -10 -10 -------- Run | Scr Mat Min Exi Total Allies 1 | . . 1 . Largest Group 1 | . . 1 . Highest-Rated Group 31 | . . 31 . Highest-Rated Ally 31 | . . 31 . Total Orders . | . . . . Ally Attacks 7 | . . 7 . Total Damage 108 | . . 108 . Kills . | . . . . Allies Corrupted . | . . . . Allies Melted . | . . . . Intel | -11 -10 -10 -10 ------- Run | Scr Mat Min Exi Robot Analysis Total . | . . . . Derelict Logs Recovered 1 | . . 1 . Drone Launches . | . . . . Drone Recoveries . | . . . . Exploration | -11 -10 -10 -10 ------------- Run | Scr Mat Min Exi Turns Passed 1451 | 65 488 527 371 Spaces Moved 771 | 41 258 271 201 Core 12 | 12 . . . Treads 759 | 29 258 271 201 Legs . | . . . . Wheels . | . . . . Hover . | . . . . Flight . | . . . . Fastest Speed 50 | 50 160 180 180 Average Speed 171 | 127 162 180 180 Slowest Speed 180 | 160 180 180 180 Overloaded Moves . | . . . . Propulsion Burnouts . | . . . . Robots Hopped . | . . . . Cave-ins Triggered . | . . . . Exploration Rate (%) 41 | 4 49 57 56 Regions Visited 3 Branch Regions 2 Pre-discovered Areas 1 | . . 1 . Known Exits Taken . | . . . . Unknown Exits Taken 3 | 1 1 1 . Scrap Searched . | . . . . Spaces Dug . | . . . . Terrain Destroyed 54 | . 33 21 . Melee . | . . . . Projectile . | . . . . AOE 54 | . 33 21 . Terrain Rammed . | . . . . Walls Destroyed . | . . . . Machines Disabled . | . . . . Actions | -11 -10 -10 -10 --------- Run | Scr Mat Min Exi Total 852 | 53 300 293 206 Wait 7 | . . 7 . Move 768 | 40 257 270 201 Hop . | . . . . Pick Up 24 | 7 15 2 . Fast Attach 1 | 1 . . . Attach 9 | 5 1 1 2 Detach . | . . . . Swap 7 | . 7 . . Drop 6 | . 6 . . Fire 30 | . 14 13 3 Melee . | . . . . Ram . | . . . . Kick . | . . . . Crush . | . . . . Escape Stasis . | . . . . Rewire . | . . . . Trap . | . . . . Miscellaneous . | . . . . Route ------- -11/Scrapyard -10/Materials (discovered 2 exits: [*Mat] / *Min) -10/Mines -10/Exiles (discovered 1 exit: [*Min]) History --------- Turn | Location | Event 6 | -11/Scrapyard | Discovered new exit (range 16) 66 | -11/Scrapyard | Entered Materials 304 | -10/Materials | Destroyed 9 combat bots 349 | -10/Materials | Build established: Mutant 352 | -10/Materials | Discovered new exit (range 16) 447 | -10/Materials | Discovered new exit (range 6) 554 | -10/Materials | Entered Mines 557 | -10/Mines | Received a Mining Laser from a helpful Derelict 607 | -10/Mines | Assembled infested the area 668 | -10/Mines | Destroyed 8 combat bots 816 | -10/Mines | Found the Drone Emporium 832 | -10/Mines | Found Prototype Device 905 | -10/Mines | Core integrity fell below 50% 1074 | -10/Mines | Deemed a non-threat by the Exiles lab entrance 1074 | -10/Mines | Discovered new exit (range 5) 1081 | -10/Mines | Entered Exiles 1107 | -10/Exiles | Discovered new exit (range 15) 1132 | -10/Exiles | Met 8R-AWN 1162 | -10/Exiles | Met EX-HEX 1256 | -10/Exiles | Met EX-DEC 1289 | -10/Exiles | Visited The Gauntlet 1440 | -10/Exiles | Attacked by the Exiles 1446 | -10/Exiles | Core integrity fell below 20% 1452 | -10/Exiles | Destroyed by EX-DEC with AWS/EX-DEC Last Messages --------------- 01308_ 4LDQY&/XGWEBYRQWXCAB/QWGJ 5L-KAT: Stay back! I'm calibrating the thromdimbulator! 01360_ System corrupted: Heat flow error (+224). 01388_ IXUX>UHT>W83P&ZF >P>A%Y N3XB0G2VSMMD 01416_ System corrupted: Component data lost. 01440_ System corrupted: FCS attempts to trigger Beam Cannon. 01440_ System corrupted: Beam Cannon misfires. 01440_ EXILES: Hostile robot within lab perimeter. Defensive protocols time, folks! 01442_ EX-DEC: "Let's see what this bad boy can do..." 01442_ EX-DEC deploys DAS Turret. 01443_ Machine disabled. 01443_ Lgt. Treads destroyed. 01443_ Beam Cannon destroyed. 01443_ Lgt. Treads destroyed. 01443_ Knocked back. 01446_ Ion Engine destroyed. 01447_ Grenade Launcher destroyed. 01447_ Knocked back. 01449_ Mining Laser destroyed. 01449_ Knocked back. Map ----- +----------------------------------------------------+ | ????????????????????????????????????? " | | ???????????????????????????????????? | | ?????????????????????? ?????????????? | | ??????????????????? ??????????????? | | ????????????????? ????????????? | | ??????????????? ?????????????? | | ?????????????? ?????????????#""" | | ?????????????" ""?????????????#""" | | ????????????" """?????????????#"""" | | ???????????"" ""????????????##"" | | ??????????"" ########??####"""" | | ??????????""" ## ####""" | | ???????????" """" | | ??????????#"" | | ??????????#"" | | ???????????# " | | ???????????#" " "" " | | ???????????#" a ""## ##""" " " "" | | ???????????#"" a ""#### ######""" """ | | ???????????#" """"##??# #????###""""# | | ???????????#"" """#??## ####???###### | | ????????????# ""##??#! "!#????????? | | ????????????#"" """##???#" !#????????? | | ????????????##""" ##????#" "#????????? | | ?????????????##"""" ##?????#!!""!"#????????? | | ??????????????### c @#??????########????????? | | ????????????????##### ##??????????????????????? | | ????????????????????## #???????????????????????? | | ?????????????????????# #???????????????????????? | | ?????????????????????# #???????????????????????? | | ?????????????????????# #???????????????????????? | | ???????????#####?????# #???????????????????????? | | ??"""""???#""""""????# #???????????????????????? | | """""""???#"""""""#??# #???????????????????????? | | """"" "#??#" """"#??# #???????????????????????? | | """ """???#"" """#??# #???????????????????????? | | "" ""????"" ""???# #???????????????????????? | | ##"""########"""###### #######?????????????????? | | "" """""""" """""" """""""#????????????????? | | " """"""" "#""??????????????? | | " "????????????? | | " "?????????????? | | " "?????????????? | | "" #"" ?????????????? | | " """"" " """" """""#????????????????? | | ##"""###""###"""########"""######????????????????? | | "" ""#""#"" ""?????? ""????????????????????? | | """ ""#""#""" ""?????? """????????????????????? | | " """"""""#" " "#?????"""""????????????????????? | | """""""????"""""""?????? """?????????????????????? | +----------------------------------------------------+ Best States ------------- Heat Dissipation 25 Energy Generation 14 Energy Capacity 250 Matter Stores 300 Matter Capacity 300 Sight Range 16 Terrain Scan Density 10 Weapon Shielding 33 Evasion (%) 50 Recoil Reduction 2 Item Schematics ----------------- None Robot Schematics ------------------ None Fabricated ------------ Nothing Alien Tech Used ----------------- None Achievements -------------- None Challenges ------------ None Game ------ Seed HardlightLatentTerminator Manual? 0 Play Time 00:19:38 Cumulative 17.9 hours Start 2021.12.08 @ 20:31:38 End 2021.12.08 @ 21:58:01 Sessions 3 Manual Loads 0 Difficulty Rogue Special Mode None Game No. 24 Rogue 24 Adventurer 0 Explorer 0 Win Type - Total 0 Types 0/0/0/0/0/0/0/0/0 Lore% 21 Gallery% 24 Achievement% 19 Wizard Run 0 Options --------- ASCII 0 Keyboard 0 Movement Mouse Keybinds 0 Fullscreen 2 Font 24/Terminus Map View 130x56 Tactical HUD 1 Map Filters NONE Filters NONE Steam 1 RUN: c9a5e6ff-db87-4fdb-84bf-ba59553712df